bitfinex/quotes_BTCUSD_20241211
["timestamp","ask_amount","ask_price","bid_price","bid_amount"]
[1733949076213,3.95067989,101460.0,101450.0,0.22456276]
[1733949076419,3.95067989,101460.0,101450.0,0.22556276]
[1733949076622,3.95067989,101460.0,101450.0,0.22456276]
[1733949076826,3.95067989,101460.0,101450.0,0.32487121]
[1733949077033,3.95067989,101460.0,101450.0,0.47587121]
[1733949078922,3.93787789,101460.0,101450.0,0.47587121]
[1733949079131,3.79037489,101460.0,101450.0,1.71290177]
[1733949079340,3.25107489,101460.0,101450.0,1.24393143]
[1733949079784,3.25107489,101460.0,101450.0,1.10164399]
[1733949079957,3.18307488,101460.0,101450.0,0.80187221]
[1733949080166,3.18307488,101460.0,101450.0,0.80087221]
[1733949080405,3.18307488,101460.0,101450.0,0.79987221]
[1733949080604,3.18307488,101460.0,101450.0,0.80087221]
[1733949080806,3.18307488,101460.0,101450.0,0.83158477]
[1733949081705,3.1831304,101460.0,101450.0,0.83158477]
[1733949082329,3.1831304,101460.0,101450.0,0.83058477]
[1733949082742,3.1831304,101460.0,101450.0,0.80593477]
[1733949083182,3.1831304,101460.0,101450.0,0.80693477]
[1733949084662,3.1831304,101460.0,101450.0,1.01027299]
[1733949085096,3.10703039,101460.0,101450.0,1.01027299]
[1733949085310,3.10011422,101460.0,101450.0,1.11341676]
[1733949085549,3.10011422,101460.0,101450.0,1.11241676]
[1733949085759,3.10011422,101460.0,101450.0,0.95467576]
[1733949085938,3.10011422,101460.0,101450.0,3.2671492]
[1733949086151,3.10011422,101460.0,101450.0,3.2681492]
[1733949086361,3.09127045,101460.0,101450.0,3.2681492]
[1733949086607,3.09127045,101460.0,101450.0,3.3140492]
[1733949086817,3.08595713,101460.0,101450.0,3.3140492]
[1733949087024,3.08492113,101460.0,101450.0,3.3140492]
[1733949088141,3.08492113,101460.0,101450.0,3.13188697]
[1733949088352,3.08492113,101460.0,101450.0,2.49704797]
[1733949088586,3.08492113,101460.0,101450.0,2.46704321]
[1733949089457,3.08492113,101460.0,101450.0,2.49004321]
[1733949089668,3.08492113,101460.0,101450.0,2.52004797]
[1733949089888,3.01692112,101460.0,101450.0,2.52004797]
[1733949090274,3.01443897,101460.0,101450.0,2.52004797]
[1733949090999,3.01443897,101460.0,101450.0,2.49004321]
[1733949091173,3.01161534,101460.0,101450.0,2.49004321]
[1733949091790,3.01161534,101460.0,101450.0,2.52174052]
[1733949091959,3.01161534,101460.0,101450.0,2.54775518]
[1733949092166,3.01161534,101460.0,101450.0,2.57507816]
[1733949092574,3.00361534,101460.0,101450.0,2.5490635]
[1733949093633,3.00361534,101460.0,101450.0,2.5884715]
[1733949093958,3.00361534,101460.0,101450.0,1.9584485]
[1733949094942,2.93561533,101460.0,101450.0,1.9584485]
[1733949095817,2.9327277,101460.0,101450.0,1.9584485]
[1733949096491,2.8814277,101460.0,101450.0,1.98446316]
[1733949096656,2.8814277,101460.0,101450.0,1.9584485]
[1733949097073,2.8814277,101460.0,101450.0,1.98446316]
[1733949098301,2.8814277,101460.0,101450.0,1.5814925]
[1733949098521,2.8814277,101460.0,101450.0,1.55416952]
[1733949098720,2.8814277,101460.0,101450.0,1.58018418]
[1733949099069,2.8814277,101460.0,101450.0,1.55416952]
[1733949099271,2.8720865,101460.0,101450.0,1.55416952]
[1733949099500,2.8720865,101460.0,101450.0,1.78749193]
[1733949099735,2.8720865,101460.0,101450.0,2.08749193]
[1733949100095,2.80408649,101460.0,101450.0,1.98349193]
[1733949100229,2.80408649,101460.0,101450.0,2.53349193]
[1733949100230,2.58527368,101460.0,101450.0,2.53349193]
[1733949100433,2.58517368,101460.0,101450.0,2.53349193]
[1733949100844,2.57727368,101460.0,101450.0,2.53349193]
[1733949101473,2.57727368,101460.0,101450.0,2.53249193]
[1733949102435,2.56937368,101460.0,101450.0,2.43249193]
[1733949102639,2.56937368,101460.0,101450.0,2.18316226]
[1733949102850,2.56937368,101460.0,101450.0,2.40655302]
[1733949103295,2.56937368,101460.0,101450.0,1.40955302]
[1733949103534,2.56937368,101460.0,101450.0,1.55955302]
[1733949104856,2.50137367,101460.0,101450.0,1.58255302]
[1733949105537,2.50087367,101460.0,101450.0,1.58255302]
[1733949106811,2.50087367,101460.0,101450.0,1.55455359]
[1733949107042,2.50087367,101460.0,101450.0,1.58255302]
[1733949108173,2.50087367,101460.0,101450.0,1.55455359]
[1733949108378,2.50087367,101460.0,101450.0,1.58255302]
[1733949108593,2.50087367,101460.0,101450.0,3.72972159]
[1733949109201,2.49287367,101460.0,101450.0,3.64227759]
[1733949109859,2.49287367,101460.0,101450.0,3.14951459]
[1733949110065,2.49287367,101460.0,101450.0,1.9495383]
[1733949110482,2.49287367,101460.0,101450.0,1.7635233]
[1733949110685,2.49287367,101460.0,101450.0,1.5601163]
[1733949110903,2.49287367,101460.0,101450.0,1.4804663]
[1733949111085,2.42487366,101460.0,101450.0,1.4804663]
[1733949111836,2.42487366,101460.0,101450.0,1.6534663]
[1733949112678,2.49987366,101460.0,101450.0,1.4804663]
[1733949112883,2.49987366,101460.0,101450.0,0.4481043]
[1733949113110,2.49987366,101460.0,101450.0,0.2981043]
[1733949113314,2.49987366,101460.0,101450.0,0.4481043]
[1733949113970,2.49987366,101460.0,101450.0,0.22471354]
[1733949114135,2.49987366,101460.0,101450.0,0.5981043]
[1733949114861,2.43187365,101460.0,101450.0,0.5991043]
[1733949115181,2.43187365,101460.0,101450.0,0.5981043]
[1733949115392,2.43187365,101460.0,101450.0,0.4491043]
[1733949115595,2.97117365,101460.0,101450.0,0.4491043]
[1733949115989,2.97217365,101460.0,101450.0,0.4491043]
[1733949116412,2.97117365,101460.0,101450.0,0.4491043]
[1733949116718,2.97117365,101460.0,101450.0,0.5991043]
[1733949116921,2.43387365,101460.0,101450.0,0.26286738]
[1733949117130,2.48097365,101460.0,101450.0,0.26286738]
[1733949119940,2.41297364,101460.0,101450.0,0.26286738]
[1733949120740,2.41297364,101460.0,101450.0,0.13476738]
[1733949120919,2.41297364,101460.0,101450.0,0.11169538]
[1733949121118,2.43828209,101460.0,101440.0,0.2460828]
[1733949121326,2.43828209,101460.0,101440.0,0.11169538]
[1733949121327,0.1279,101450.0,101440.0,0.11169538]
[1733949121523,0.1279,101450.0,101440.0,0.35785208]
[1733949122858,0.1279,101450.0,101440.0,0.2511567]
[1733949123057,0.1279,101450.0,101440.0,0.2491567]
[1733949123267,0.22820845,101450.0,101440.0,0.31085208]
[1733949123601,0.1279,101450.0,101440.0,0.31085208]
[1733949123804,0.1279,101450.0,101440.0,0.34068282]
[1733949124009,0.1279,101450.0,101440.0,0.55268665]
[1733949124216,0.1279,101450.0,101440.0,0.46085208]
[1733949124420,0.1279,101450.0,101440.0,0.46685208]
[1733949124824,0.05989999,101450.0,101440.0,0.46685208]
[1733949126707,0.05989999,101450.0,101440.0,0.31685208]
[1733949126929,0.38320844,101450.0,101440.0,0.2051567]
[1733949127135,0.36020844,101450.0,101440.0,0.12069538]
[1733949127341,0.25989999,101450.0,101440.0,0.36686968]
[1733949127825,0.05989999,101450.0,101440.0,0.36686968]
[1733949128866,0.25989999,101450.0,101440.0,0.36686968]
[1733949129910,0.05989999,101450.0,101440.0,0.36686968]
[1733949130153,2.48077362,101460.0,101440.0,0.36686968]
[1733949130403,2.58108207,101460.0,101450.0,0.11169538]
[1733949130659,2.58108207,101460.0,101440.0,0.12069538]
[1733949130911,0.10030845,101450.0,101440.0,0.009]
[1733949131154,0.10030845,101450.0,101430.0,0.000172]
[1733949131399,0.10030845,101450.0,101430.0,0.11186738]
[1733949131941,0.30030845,101450.0,101430.0,0.11186738]
[1733949132207,0.32330845,101450.0,101440.0,0.001]
[1733949132751,0.32330845,101450.0,101440.0,0.006]
[1733949132999,0.023,101440.0,101430.0,0.000172]
[1733949133249,0.12330845,101440.0,101430.0,0.000172]
[1733949133677,0.24880845,101440.0,101430.0,0.000172]
[1733949135022,0.18080844,101440.0,101430.0,0.000172]
[1733949135232,0.18080844,101440.0,101430.0,0.001172]
[1733949135670,0.620328,101410.0,101400.0,0.11169538]
[1733949135875,0.620328,101410.0,101400.0,0.35794238]
[1733949136721,0.0822,101410.0,101400.0,0.50794238]
[1733949136935,0.18356392,101410.0,101400.0,0.50794238]
[1733949137152,0.18356392,101410.0,101400.0,0.396247]
[1733949137394,0.18556392,101410.0,101400.0,0.396247]
[1733949137819,0.38556392,101410.0,101400.0,0.50794238]
[1733949138028,0.28525547,101410.0,101400.0,0.61963776]
[1733949138245,0.20005547,101410.0,101400.0,0.61963776]
[1733949138457,0.20005547,101410.0,101400.0,0.62263776]
[1733949138904,5.547e-05,101410.0,101400.0,0.62063776]
[1733949139333,0.00505547,101410.0,101400.0,0.62063776]
[1733949139757,5.547e-05,101410.0,101400.0,0.62063776]
[1733949139976,0.13205546,101430.0,101410.0,0.3]
[1733949140208,0.13216492,101430.0,101420.0,0.64669921]
[1733949140426,0.13216492,101430.0,101420.0,2.11565931]
[1733949140649,0.13216492,101430.0,101420.0,2.05303531]
[1733949140859,0.00010946,101430.0,101420.0,1.28721231]
[1733949141536,0.00210946,101430.0,101420.0,1.28721231]
[1733949141746,0.00710946,101430.0,101420.0,1.28721231]
[1733949141952,0.00710946,101430.0,101420.0,1.15845931]
[1733949142157,0.00210946,101430.0,101420.0,0.50783348]
[1733949142586,0.00310946,101430.0,101420.0,0.2461381]
[1733949142795,0.20310946,101430.0,101420.0,0.35783348]
[1733949143412,0.20310946,101430.0,101420.0,0.41386458]
[1733949143413,0.20110946,101430.0,101420.0,0.41386458]
[1733949143620,0.20110946,101430.0,101420.0,0.2471381]
[1733949143621,0.30141791,101430.0,101420.0,0.2471381]
[1733949144453,0.30041791,101430.0,101420.0,0.41386458]
[1733949144863,0.2324179,101430.0,101420.0,0.41486458]
[1733949145099,0.2324179,101430.0,101420.0,0.41386458]
[1733949145326,0.2324179,101430.0,101420.0,0.41503658]
[1733949145759,0.2324179,101430.0,101420.0,0.2473101]
[1733949146604,0.2324179,101430.0,101420.0,0.2463101]
[1733949146818,0.10030845,101430.0,101420.0,0.2463101]
[1733949148060,0.10030845,101430.0,101420.0,0.001172]
[1733949148901,0.18340845,101430.0,101420.0,0.001172]
[1733949149361,0.23160845,101430.0,101420.0,0.001172]
[1733949149803,0.43160845,101430.0,101420.0,0.001172]
[1733949150011,0.36360844,101430.0,101420.0,0.000172]
[1733949150251,0.36660844,101430.0,101420.0,0.000172]
[1733949150868,0.36860844,101430.0,101420.0,0.000172]
[1733949152328,0.36660844,101430.0,101420.0,0.000172]
[1733949152540,0.36860844,101430.0,101420.0,0.000172]
[1733949152952,0.36560844,101430.0,101420.0,0.000172]
[1733949153336,0.36860844,101430.0,101420.0,0.000172]
[1733949153772,0.36660844,101430.0,101420.0,0.000172]
[1733949153956,0.36360844,101430.0,101420.0,0.000172]
[1733949154177,0.36560844,101430.0,101420.0,0.000172]
[1733949154376,0.36860844,101430.0,101420.0,0.000172]
[1733949154946,0.40091688,101430.0,101420.0,0.000172]
[1733949156540,0.40382977,101430.0,101420.0,0.000172]
[1733949158348,0.49169458,101430.0,101420.0,0.000172]
[1733949158556,0.539128,101410.0,101400.0,0.15]
[1733949158741,0.539128,101410.0,101400.0,0.3962751]
[1733949159913,0.77243644,101410.0,101400.0,0.2502751]
[1733949160122,0.38400845,101410.0,101400.0,0.007]
[1733949160343,0.67367048,101410.0,101400.0,0.007]
[1733949160555,0.84975258,101410.0,101400.0,0.007]
[1733949160764,0.84991454,101410.0,101400.0,0.007]
[1733949161070,0.84991454,101410.0,101400.0,0.004]
[1733949161260,0.56725628,101410.0,101390.0,0.16772648]
[1733949161476,0.2,101410.0,101400.0,0.16772648]
[1733949161716,0.2,101410.0,101400.0,0.31772648]
[1733949161932,0.09089202,101430.0,101400.0,0.31772648]
[1733949162134,0.5393,101420.0,101410.0,0.16772648]
[1733949162582,0.5393,101420.0,101400.0,0.31872648]
[1733949162798,0.5393,101420.0,101400.0,0.31772648]
[1733949163038,0.63960845,101420.0,101400.0,0.31772648]
[1733949163250,0.10030845,101410.0,101380.0,0.39909848]
[1733949163686,0.95924783,101420.0,101390.0,0.16772648]
[1733949163900,1.05955628,101420.0,101390.0,0.16772648]
[1733949164125,0.5393,101400.0,101380.0,0.24909848]
[1733949164315,0.5393,101400.0,101380.0,0.3276668]
[1733949164613,0.63960845,101400.0,101380.0,0.3276668]
[1733949164819,0.63960845,101390.0,101380.0,0.000172]
[1733949165039,0.03230844,101390.0,101380.0,0.000172]
[1733949165912,0.23230844,101390.0,101380.0,0.000172]
[1733949166133,0.23230844,101390.0,101380.0,0.00072638]
[1733949166344,0.23230844,101390.0,101380.0,0.00472638]
[1733949166561,0.23330844,101390.0,101380.0,0.00472638]
[1733949166958,0.23330844,101390.0,101380.0,0.00772638]
[1733949167381,0.201,101390.0,101380.0,0.17545286]
[1733949167603,0.201,101390.0,101380.0,0.56877766]
[1733949167820,0.001,101390.0,101380.0,0.40105118]
[1733949168039,0.001,101390.0,101380.0,0.40405118]
[1733949168251,0.10130845,101390.0,101380.0,0.00772638]
[1733949168887,0.30130845,101390.0,101380.0,0.00772638]
[1733949169102,0.35020845,101390.0,101380.0,0.00772638]
[1733949169394,0.43319455,101390.0,101380.0,0.00772638]
[1733949169664,0.53157362,101360.0,101350.0,0.1963]
[1733949169878,0.53157362,101360.0,101350.0,0.44283738]
[1733949170298,0.5393,101380.0,101350.0,0.44283738]
[1733949170500,0.63960845,101380.0,101350.0,0.19646638]
[1733949170932,0.006,101360.0,101350.0,0.19746638]
[1733949171143,0.3318861,101390.0,101350.0,0.71187171]
[1733949171348,0.2000861,101390.0,101370.0,0.16772648]
[1733949172197,0.2000861,101390.0,101360.0,0.34483493]
[1733949172198,0.001,101380.0,101360.0,0.34483493]
[1733949172445,0.001,101380.0,101360.0,0.59117393]
[1733949172629,0.002,101380.0,101360.0,0.59117393]
[1733949172835,0.202,101380.0,101360.0,0.59117393]
[1733949173057,0.201,101380.0,101360.0,0.59117393]
[1733949173193,0.201,101380.0,101370.0,0.005]
[1733949173397,0.2,101380.0,101360.0,0.59117393]
[1733949173602,0.30030845,101380.0,101360.0,0.2268]
[1733949173920,0.30630845,101380.0,101370.0,0.003]
[1733949174251,0.30030845,101380.0,101360.0,0.15]
[1733949174663,0.30130845,101380.0,101370.0,0.005]
[1733949174876,0.10130845,101380.0,101370.0,0.005]
[1733949175013,0.001,101380.0,101370.0,0.005]
[1733949175223,0.004,101380.0,101370.0,0.005]
[1733949175790,0.203,101380.0,101360.0,0.15]
[1733949175991,0.30330845,101380.0,101350.0,0.22786638]
[1733949176251,0.30730845,101380.0,101350.0,0.07786638]
[1733949176453,0.30030845,101380.0,101350.0,0.07786638]
[1733949176856,0.10130845,101380.0,101370.0,0.009]
[1733949177068,8.61e-05,101390.0,101370.0,0.17372648]
[1733949177316,8.61e-05,101390.0,101380.0,0.16772648]
[1733949177533,8.61e-05,101390.0,101370.0,0.16772648]
[1733949177736,0.2000861,101390.0,101360.0,0.16772648]
[1733949177950,0.2000861,101390.0,101360.0,0.26803493]
[1733949179021,0.2000861,101390.0,101370.0,0.002]
[1733949179230,0.5393,101380.0,101360.0,0.26803493]
[1733949179434,0.2000861,101390.0,101370.0,0.16772648]
[1733949179641,0.5393,101380.0,101370.0,0.31772648]
[1733949179871,0.47129999,101380.0,101370.0,0.56406608]
[1733949180309,0.47129999,101380.0,101370.0,0.3963396]
[1733949180529,0.47129999,101380.0,101370.0,0.3973396]
[1733949180743,0.77160844,101380.0,101370.0,0.001]
[1733949180958,0.77160844,101380.0,101350.0,0.12376638]
[1733949181179,0.77160844,101380.0,101370.0,0.0011722]
[1733949181812,0.57160844,101380.0,101370.0,0.0001722]
[1733949182235,0.57260844,101380.0,101370.0,0.0051722]
[1733949182465,0.57160844,101380.0,101370.0,0.0001722]
[1733949182894,0.77160844,101380.0,101370.0,0.0021722]
[1733949183105,0.77160844,101380.0,101370.0,0.0031722]
[1733949183313,0.32330845,101380.0,101370.0,0.0031722]
[1733949183528,0.32330845,101380.0,101370.0,0.0021722]
[1733949183970,0.32330845,101380.0,101370.0,0.0031722]
[1733949185049,0.30330845,101380.0,101370.0,0.0031722]
[1733949185280,0.28030845,101380.0,101370.0,0.0031722]
[1733949185692,0.3102687,101380.0,101370.0,0.0031722]
[1733949187656,0.22996025,101380.0,101370.0,0.0031722]
[1733949187893,0.22996025,101380.0,101370.0,0.17089868]
[1733949188112,0.22996025,101380.0,101370.0,0.64633908]
[1733949188752,0.02996025,101380.0,101370.0,0.64633908]
[1733949189215,0.2000861,101390.0,101370.0,0.64633908]
[1733949189425,0.2000861,101390.0,101370.0,0.2322722]
[1733949189841,0.13199999,101380.0,101370.0,0.1531722]
[1733949190053,0.13199999,101380.0,101370.0,0.1501722]
[1733949190291,0.13199999,101380.0,101370.0,1.33823583]
[1733949190507,9e-08,101390.0,101380.0,0.473]
[1733949190736,9e-08,101390.0,101380.0,0.87013493]
[1733949190963,0.05,101400.0,101390.0,0.3]
[1733949191182,0.05,101400.0,101390.0,0.81427453]
[1733949192288,0.05,101400.0,101390.0,0.81444091]
[1733949192492,0.051,101400.0,101390.0,0.82144091]
[1733949193566,0.051,101400.0,101390.0,0.82644091]
[1733949193998,0.051,101400.0,101390.0,0.50871443]
[1733949194217,0.051,101400.0,101390.0,0.40840598]
[1733949194887,0.18299999,101400.0,101390.0,0.40840598]
[1733949195118,0.18299999,101400.0,101390.0,0.25840598]
[1733949195360,0.18299999,101400.0,101390.0,0.01216638]
[1733949195641,0.28330844,101400.0,101390.0,0.01216638]
[1733949196284,0.28330844,101400.0,101390.0,0.00716638]
[1733949196497,0.28330844,101400.0,101390.0,0.00116638]
[1733949196714,0.28330844,101400.0,101390.0,0.00316638]
[1733949197147,0.30030845,101400.0,101390.0,0.00316638]
[1733949197351,0.30030845,101400.0,101390.0,0.00216638]
[1733949197557,0.30130845,101400.0,101390.0,0.00216638]
[1733949197976,0.37730845,101400.0,101390.0,0.00216638]
[1733949198199,0.37730845,101400.0,101390.0,0.00016638]
[1733949198405,0.37930845,101400.0,101390.0,0.00016638]
[1733949199659,0.53913362,101380.0,101370.0,0.0001722]
[1733949199864,0.53913362,101380.0,101370.0,0.00028166]
[1733949200143,0.47113361,101380.0,101370.0,0.00028166]
[1733949200810,0.30030845,101380.0,101370.0,0.00028166]
[1733949201015,0.30030845,101380.0,101370.0,0.00328166]
[1733949201201,0.30130845,101380.0,101370.0,0.00928166]
[1733949203224,0.30139445,101380.0,101370.0,0.00928166]
[1733949204903,0.23339444,101380.0,101370.0,0.00928166]
[1733949206676,0.30139445,101380.0,101370.0,0.00928166]
[1733949207393,0.201086,101380.0,101370.0,0.00928166]
[1733949207678,0.22730027,101380.0,101370.0,0.00928166]
[1733949207923,0.32760872,101380.0,101370.0,0.00928166]
[1733949208129,0.43000872,101380.0,101370.0,0.00928166]
[1733949208343,0.43000872,101380.0,101370.0,0.00401473]
[1733949208983,0.42900872,101380.0,101340.0,0.44959848]
[1733949209204,0.10030845,101370.0,101340.0,0.44965395]
[1733949209627,0.63960845,101370.0,101340.0,0.44965395]
[1733949210060,0.62360845,101370.0,101340.0,0.44965395]
[1733949210878,0.2,101350.0,101340.0,0.45065395]
[1733949211123,0.2,101350.0,101340.0,0.69705735]
[1733949211741,0.2,101360.0,101340.0,0.69705735]
[1733949211950,0.2,101360.0,101340.0,0.45065395]
[1733949212176,0.2,101360.0,101340.0,0.44965395]
[1733949213227,0.2,101360.0,101350.0,0.11198362]
[1733949214192,0.203,101360.0,101350.0,0.11198362]
[1733949214876,0.204,101360.0,101350.0,0.11598362]
[1733949215075,0.13599999,101360.0,101350.0,0.11598362]
[1733949215487,0.15913507,101360.0,101350.0,0.11598362]
[1733949215820,0.15913507,101360.0,101350.0,0.12098362]
[1733949216818,0.02713508,101360.0,101350.0,0.12098362]
[1733949217460,0.02713508,101360.0,101350.0,0.36738242]
[1733949217661,0.02713508,101360.0,101350.0,0.61769087]
[1733949218175,0.001,101360.0,101350.0,0.61769087]
[1733949219525,0.001,101360.0,101350.0,0.69779087]
[1733949219728,0.001,101360.0,101350.0,0.74749087]
[1733949219869,0.023,101400.0,101360.0,0.15]
[1733949220047,0.12330845,101400.0,101380.0,0.11198362]
[1733949220257,0.15568,101410.0,101390.0,0.11198362]
[1733949220462,0.72658059,101430.0,101400.0,0.22396724]
[1733949220463,0.47714369,101430.0,101400.0,0.22396724]
[1733949220665,0.10030845,101420.0,101410.0,0.11198362]
[1733949220904,0.12546286,101430.0,101410.0,0.11198362]
[1733949221140,0.12546286,101430.0,101420.0,0.11198362]
[1733949221739,0.12546286,101430.0,101410.0,0.11198362]
[1733949222632,0.12746286,101430.0,101410.0,0.11198362]
[1733949222957,0.13146286,101430.0,101410.0,0.11198362]
[1733949223194,0.12946286,101430.0,101410.0,0.11198362]
[1733949223421,0.13046286,101430.0,101410.0,0.11198362]
[1733949223624,0.5393,101420.0,101410.0,0.11298362]
[1733949224039,0.5393,101420.0,101410.0,0.11198362]
[1733949224251,0.63960845,101420.0,101400.0,5.547e-05]
[1733949224463,0.66260845,101410.0,101400.0,5.547e-05]
[1733949224875,0.25252744,101410.0,101400.0,5.547e-05]
[1733949225303,0.05530844,101410.0,101400.0,5.547e-05]
[1733949227021,0.25252744,101410.0,101400.0,5.547e-05]
[1733949227292,0.85463504,101410.0,101400.0,0.00105547]
[1733949227508,0.5393,101390.0,101360.0,0.047]
[1733949227726,0.63960845,101390.0,101360.0,0.00016638]
[1733949229009,0.5393,101380.0,101360.0,0.00016638]
[1733949229659,0.5393,101380.0,101360.0,0.00116638]
[1733949229869,0.5393,101380.0,101360.0,0.00016638]
[1733949230329,0.5393,101380.0,101360.0,0.00716638]
[1733949230543,0.5393,101380.0,101360.0,0.00216638]
[1733949230752,0.5393,101380.0,101360.0,0.00316638]
[1733949231161,0.47129999,101380.0,101360.0,0.00316638]
[1733949231569,0.47129999,101380.0,101360.0,0.00116638]
[1733949231773,0.10030845,101390.0,101360.0,0.00116638]
[1733949231984,0.63960845,101380.0,101360.0,0.00116638]
[1733949232373,0.10030845,101380.0,101360.0,0.00094539]
[1733949232810,0.5393,101370.0,101360.0,0.00094539]
[1733949233977,0.5393,101370.0,101350.0,0.31795487]
[1733949234186,0.53946422,101370.0,101350.0,0.31795487]
[1733949234392,0.53946422,101370.0,101360.0,0.005]
[1733949234957,0.47146421,101370.0,101360.0,0.005]
[1733949235588,0.47146421,101370.0,101360.0,0.007]
[1733949236017,0.47146421,101370.0,101360.0,0.002]
[1733949236444,0.47146421,101370.0,101350.0,0.31795487]
[1733949236651,0.47146421,101370.0,101350.0,0.15]
[1733949236863,0.47146421,101370.0,101350.0,0.155]
[1733949237074,0.47146421,101370.0,101350.0,0.15]
[1733949237522,0.47146421,101370.0,101360.0,0.001]
[1733949237970,0.47146421,101370.0,101350.0,0.001]
[1733949238819,0.47129999,101360.0,101350.0,0.001]
[1733949239035,0.58644642,101360.0,101350.0,0.2473964]
[1733949239215,0.58644642,101360.0,101340.0,0.000172]
[1733949239216,0.15,101350.0,101340.0,0.000172]
[1733949239456,0.5393,101340.0,101330.0,0.16812687]
[1733949239670,0.5393,101340.0,101330.0,0.10048045]
[1733949239905,0.5393,101340.0,101330.0,0.2466057]
[1733949240116,0.5323,101340.0,101330.0,0.2466057]
[1733949240980,0.5333,101340.0,101330.0,0.2556057]
[1733949241212,0.5323,101340.0,101330.0,0.2466057]
[1733949242481,0.5323,101340.0,101330.0,0.001172]
[1733949242702,0.46897087,101360.0,101330.0,0.001172]
[1733949242910,0.48324445,101350.0,101330.0,0.001172]
[1733949243120,0.28590845,101350.0,101330.0,0.001172]
[1733949243337,0.48324445,101350.0,101330.0,0.001172]
[1733949243554,0.65119932,101350.0,101330.0,0.001172]
[1733949243756,0.65119932,101350.0,101330.0,0.000172]
[1733949243961,0.45386332,101350.0,101330.0,0.000172]
[1733949244170,0.45686332,101350.0,101330.0,0.000172]
[1733949244623,0.51134139,101350.0,101330.0,0.000172]
[1733949244848,0.70868039,101350.0,101330.0,0.000172]
[1733949245135,0.65020232,101350.0,101330.0,0.000172]
[1733949245335,0.65020732,101350.0,101330.0,0.000172]
[1733949245745,0.5389562,101320.0,101310.0,0.0001718]
[1733949245984,0.15,101320.0,101290.0,0.000172]
[1733949246458,0.31515545,101320.0,101290.0,0.000172]
[1733949246889,0.25030845,101320.0,101290.0,0.000172]
[1733949247020,0.5393,101310.0,101290.0,0.00072659]
[1733949247232,0.63960845,101310.0,101290.0,0.00072659]
[1733949248695,0.5393,101310.0,101300.0,0.11214427]
[1733949248904,0.5393,101310.0,101290.0,0.46069551]
[1733949249115,0.5413,101310.0,101290.0,0.46069551]
[1733949249309,0.5413,101310.0,101290.0,0.45969551]
[1733949249736,0.5443,101310.0,101290.0,0.45969551]
[1733949249946,0.47529999,101310.0,101290.0,0.35938706]
[1733949250216,0.47529999,101310.0,101290.0,0.00072659]
[1733949250427,0.47229999,101310.0,101290.0,0.00072659]
[1733949250631,0.47029999,101310.0,101290.0,0.00072659]
[1733949250837,0.47029999,101300.0,101290.0,0.00072659]
[1733949252282,0.47029999,101300.0,101290.0,0.00172659]
[1733949253342,0.47029999,101300.0,101290.0,0.00272659]
[1733949253892,0.003,101310.0,101290.0,0.00272659]
[1733949254716,0.003,101310.0,101290.0,0.00172659]
[1733949254927,0.15,101330.0,101290.0,0.11387086]
[1733949254928,0.11006585,101330.0,101290.0,0.11387086]
[1733949255131,0.002,101310.0,101290.0,0.11387086]
[1733949255718,0.002,101310.0,101290.0,0.11287086]
[1733949255922,0.005,101310.0,101290.0,0.11287086]
[1733949256463,0.003,101310.0,101290.0,0.11287086]
[1733949256678,0.5393,101300.0,101290.0,0.26287086]
[1733949256883,0.5393,101300.0,101290.0,0.51040656]
[1733949257305,0.5393,101300.0,101290.0,0.50940656]
[1733949258359,0.5393,101300.0,101290.0,0.51040656]
[1733949259302,0.5393,101300.0,101290.0,0.51240656]
[1733949259687,0.00302677,101320.0,101290.0,0.51140656]
[1733949259942,0.03433521,101330.0,101290.0,0.26687086]
[1733949260153,0.03433521,101330.0,101290.0,0.36817931]
[1733949260358,0.38171021,101330.0,101290.0,0.36817931]
[1733949260566,0.38171021,101330.0,101290.0,0.36717931]
[1733949260779,0.38171021,101330.0,101290.0,0.36817931]
[1733949260990,0.38171021,101330.0,101290.0,0.15572659]
[1733949261225,0.38171021,101330.0,101290.0,0.00472659]
[1733949261226,0.61859121,101330.0,101290.0,0.00472659]
[1733949261537,0.274594,101320.0,101290.0,0.00472659]
[1733949261786,0.10030845,101310.0,101290.0,0.00172659]
[1733949262015,0.5393,101300.0,101290.0,0.001]
[1733949262307,0.18290845,101300.0,101290.0,0.001]
[1733949262584,0.42554145,101300.0,101260.0,0.0001722]
[1733949262830,0.42554145,101300.0,101260.0,0.00033874]
[1733949262831,0.10030845,101290.0,101260.0,0.00033874]
[1733949263122,0.1278,101300.0,101260.0,0.21279146]
[1733949263346,0.007,101300.0,101290.0,0.001]
[1733949263586,0.23558419,101310.0,101270.0,0.21245272]
[1733949263868,0.33589264,101310.0,101270.0,0.21245272]
[1733949264123,0.43597821,101310.0,101270.0,0.21245272]
[1733949264612,0.004,101300.0,101270.0,0.21245272]
[1733949265099,0.18300845,101310.0,101270.0,0.10030845]
[1733949265366,0.21245272,101300.0,101270.0,0.15]
[1733949265590,0.22145272,101300.0,101270.0,0.15]
[1733949265824,0.5393,101290.0,101260.0,0.15033874]
[1733949266033,0.5393,101290.0,101270.0,0.001]
[1733949266225,0.63960845,101290.0,101270.0,0.001]
[1733949267145,0.64060845,101290.0,101260.0,0.15033874]
[1733949268485,0.21245272,101280.0,101260.0,0.00033874]
[1733949268912,0.10030845,101280.0,101260.0,0.00033874]
[1733949269343,0.10030845,101280.0,101260.0,0.00133874]
[1733949269775,0.10030845,101280.0,101260.0,0.00033874]
[1733949269990,0.14545271,101280.0,101260.0,0.00033874]
[1733949270432,0.0821,101270.0,101260.0,0.00033874]
[1733949270643,0.29455272,101270.0,101260.0,0.00033874]
[1733949270863,0.18240845,101270.0,101260.0,0.00033874]
[1733949271496,0.37989945,101270.0,101240.0,0.000172]
[1733949271706,0.18240845,101270.0,101240.0,0.15033842]
[1733949272640,0.37989945,101270.0,101260.0,0.002]
[1733949272847,0.37989945,101270.0,101240.0,0.15033842]
[1733949273306,0.38889945,101270.0,101240.0,0.15033842]
[1733949273522,0.19140845,101270.0,101240.0,0.15033842]
[1733949273729,0.28410517,101270.0,101260.0,0.001]
[1733949274142,0.28410517,101270.0,101240.0,0.15033842]
[1733949274143,0.27910517,101270.0,101240.0,0.15033842]
[1733949274361,0.31118509,101270.0,101240.0,0.15033842]
[1733949274996,0.24718508,101270.0,101240.0,0.15133842]
[1733949275627,0.03707992,101270.0,101240.0,0.15133842]
[1733949276058,0.03707992,101270.0,101240.0,0.001]
[1733949276276,0.04607992,101270.0,101240.0,0.001]
[1733949276705,0.03707992,101270.0,101240.0,0.001]
[1733949276919,0.04607992,101270.0,101240.0,0.001]
[1733949277547,0.133722,101270.0,101240.0,0.001]
[1733949277757,0.5393,101260.0,101240.0,0.001]
[1733949278704,0.5393,101260.0,101230.0,0.38721627]